bitfinex/quotes_ETHUSD_20240715
["timestamp","ask_amount","ask_price","bid_price","bid_amount"]
[1721082384517,0.29906355,3462.3,3462.2,9.354326]
[1721082384747,0.29906355,3462.3,3462.2,5.88833]
[1721082384957,0.29906355,3462.3,3461.8,2.88864]
[1721082385119,0.29906355,3462.3,3461.9,2.88858]
[1721082385319,0.55,3462.2,3461.4,2.88899]
[1721082385659,2.3764,3462.1,3461.4,2.889]
[1721082385820,0.61137935,3462.0,3461.4,2.889]
[1721082386021,0.55,3461.9,3461.3,2.88906]
[1721082386221,0.55,3461.9,3461.4,2.889]
[1721082386562,0.55,3461.9,3461.6,2.88881]
[1721082386858,0.55,3462.0,3461.6,2.88881]
[1721082388371,0.87254636,3462.0,3461.6,2.88881]
[1721082390164,0.87254636,3462.0,3461.4,2.889]
[1721082390165,0.29882694,3461.9,3461.4,2.889]
[1721082390378,0.55,3461.8,3461.5,2.88891]
[1721082390936,0.55,3461.8,3461.6,2.88883]
[1721082391162,0.29882694,3461.9,3461.8,5.77734]
[1721082391469,0.29882694,3461.9,3461.7,2.88873]
[1721082392213,0.56634963,3461.9,3461.4,2.88898]
[1721082392353,0.55,3461.8,3461.7,2.88875]
[1721082392893,0.29882694,3461.9,3461.8,5.77734]
[1721082393195,0.29882694,3461.9,3461.0,5.703]
[1721082393489,0.29882694,3461.9,3461.6,2.88881]
[1721082393704,0.29882694,3461.9,3461.8,2.88867]
[1721082394366,0.84882694,3461.9,3461.6,2.88881]
[1721082394590,0.84882694,3461.9,3461.8,2.88867]
[1721082396991,0.29882694,3461.9,3461.8,2.88867]
[1721082397205,0.29882694,3461.9,3461.8,6.066207]
[1721082397703,0.29882694,3461.9,3461.8,5.77734]
[1721082399388,0.29882694,3461.9,3461.8,2.88867]
[1721082399992,0.29882694,3461.9,3461.8,5.77734]
[1721082400605,0.29882694,3461.9,3461.8,2.88867]
[1721082401678,0.29882694,3461.9,3461.0,5.703]
[1721082401879,0.29882694,3461.9,3461.6,2.88876]
[1721082402119,0.55,3461.8,3461.6,2.88876]
[1721082402432,0.55,3461.8,3461.7,2.88875]
[1721082403107,0.55,3461.8,3461.5,2.88886]
[1721082404482,0.55,3461.8,3461.0,3.0]
[1721082404729,0.55,3461.8,3460.6,2.703]
[1721082404730,0.55,3461.8,3461.3,2.88902]
[1721082404926,1.04453325,3461.8,3461.3,2.88902]
[1721082405219,1.04453325,3461.8,3461.3,2.88904]
[1721082405791,0.55,3461.8,3461.3,2.88904]
[1721082406014,0.29882694,3461.9,3461.8,2.88867]
[1721082406418,0.29882694,3461.9,3461.6,2.88876]
[1721082406722,0.29882694,3461.9,3461.7,2.88868]
[1721082407087,0.29882694,3461.9,3461.6,2.88876]
[1721082407088,0.29882694,3461.9,3461.5,2.88884]
[1721082407421,0.29882694,3461.9,3460.7,3.0]
[1721082407629,0.55,3461.8,3461.3,2.88907]
[1721082408627,0.55,3461.8,3461.6,2.88879]
[1721082408984,0.55,3461.8,3460.8,2.88944]
[1721082409306,0.55,3461.8,3460.9,5.88942]
[1721082409494,2.3308,3461.7,3461.2,2.88909]
[1721082409699,0.55,3461.6,3461.2,2.88909]
[1721082409900,0.55,3461.6,3461.3,2.88904]
[1721082410287,0.29884407,3461.5,3461.3,2.88904]
[1721082410487,0.55,3461.4,3461.3,2.88904]
[1721082410907,0.29884407,3461.5,3461.4,2.889]
[1721082411490,0.29884407,3461.5,3461.4,5.778]
[1721082412519,0.29884407,3461.5,3461.4,6.3558]
[1721082413230,0.60108296,3461.5,3461.4,6.3558]
[1721082416044,0.60108296,3461.5,3461.4,12.2448]
[1721082417433,0.60108296,3461.5,3461.4,9.3558]
[1721082417650,0.60108296,3461.5,3461.4,8.778]
[1721082419249,0.60108296,3461.5,3461.4,11.667]
[1721082419824,0.29884407,3461.5,3461.4,11.667]
[1721082420025,0.29884407,3461.5,3461.4,16.8381]
[1721082420264,0.302216,3462.0,3461.9,8.66574]
[1721082420466,0.302216,3462.0,3461.9,12.821189]
[1721082420633,0.9059332,3463.0,3462.5,2.88807]
[1721082420969,0.9059332,3463.0,3462.6,2.88798]
[1721082420970,0.9059332,3462.8,3462.6,2.88798]
[1721082421130,0.30219976,3462.9,3462.6,2.88798]
[1721082421462,0.60102464,3462.9,3462.6,2.88792]
[1721082421661,0.60102464,3462.9,3462.7,2.8879]
[1721082421861,0.60102464,3462.9,3462.5,2.88803]
[1721082421862,0.55,3462.8,3462.5,2.88803]
[1721082422170,0.55,3462.8,3462.6,2.88798]
[1721082422467,0.9059332,3462.7,3461.9,3.0]
[1721082422771,0.9059332,3462.7,3462.0,2.8885]
[1721082422952,3.9281332,3462.6,3462.0,2.8885]
[1721082423152,0.80238941,3462.5,3462.1,2.88841]
[1721082423329,0.55,3462.4,3462.1,2.88841]
[1721082423665,0.55,3462.4,3461.9,2.88858]
[1721082423863,0.55,3462.4,3462.0,3.0]
[1721082424165,0.55,3462.4,3462.1,2.88841]
[1721082424541,1.14384335,3462.4,3462.1,2.88841]
[1721082425882,1.14384335,3462.4,3461.9,3.0]
[1721082425883,0.55,3462.4,3462.0,2.88844]
[1721082426044,0.55,3462.5,3461.9,5.88856]
[1721082426245,0.9059332,3462.4,3461.9,2.88856]
[1721082426489,1.4559332,3462.3,3461.9,2.88856]
[1721082427357,1.4559332,3462.3,3461.4,3.0]
[1721082427358,0.9059332,3462.2,3461.4,2.88899]
[1721082427574,1.4559332,3462.1,3461.4,2.88899]
[1721082427797,0.9059332,3462.0,3461.4,2.88899]
[1721082428086,0.55,3461.9,3461.6,2.88882]
[1721082429270,1.4559332,3461.9,3461.6,2.88882]
[1721082430202,0.9059332,3461.8,3461.6,2.88882]
[1721082430356,0.55,3461.7,3461.6,2.88882]
[1721082431067,0.55,3461.8,3461.6,2.88882]
[1721082431453,1.4559332,3461.8,3461.6,2.88882]
[1721082431694,0.84875244,3461.8,3461.6,2.88882]
[1721082431850,0.84875244,3461.8,3461.4,2.88899]
[1721082431851,0.84875244,3461.8,3461.7,2.88875]
[1721082433154,0.84875244,3461.8,3461.7,6.355264]
[1721082433155,0.29875244,3461.8,3461.7,6.355264]
[1721082433664,0.29875244,3461.8,3461.7,3.466514]
[1721082433956,0.29875244,3461.8,3461.7,2.88875]
[1721082434201,0.29875244,3461.8,3461.7,5.7775]
[1721082434958,0.29875244,3461.8,3461.7,11.66625]
[1721082436352,0.90909891,3462.9,3461.7,5.88875]
[1721082436555,0.90909891,3462.9,3461.6,2.703]
[1721082436556,0.90848074,3463.3,3462.6,2.88794]
[1721082436761,0.90848074,3463.4,3463.3,2.88741]
[1721082436987,0.90848074,3463.5,3463.3,2.88734]
[1721082437158,0.60074077,3463.4,3463.3,2.88734]
[1721082438604,0.60074077,3463.4,3463.2,2.88749]
[1721082438821,0.60074077,3463.4,3463.3,2.88741]
[1721082438983,0.60074077,3463.4,3463.0,2.88762]
[1721082439322,0.55,3463.3,3462.9,2.88769]
[1721082439533,0.55,3463.3,3463.0,2.88766]
[1721082439884,0.55,3463.3,3462.8,19.93]
[1721082440086,1.45736588,3463.3,3462.8,19.93]
[1721082440279,1.20391313,3463.2,3462.8,19.93]
[1721082440517,0.55,3463.1,3462.8,19.93]
[1721082440821,0.55,3463.1,3462.5,2.88808]
[1721082440822,1.45736588,3463.1,3462.5,2.88808]
[1721082441034,0.90736588,3463.0,3462.5,2.88808]
[1721082441225,0.84637343,3462.9,3462.6,2.88799]
[1721082441581,0.84637343,3462.9,3462.7,2.8879]
[1721082441788,0.55,3462.9,3462.7,2.8879]
[1721082442020,0.55,3463.1,3462.8,2.88782]
[1721082442837,0.55,3463.1,3462.6,2.88794]
[1721082443046,0.55,3463.1,3462.7,2.8879]
[1721082444343,0.55,3463.1,3462.8,2.8878]
[1721082445133,0.27266568,3463.3,3463.2,8.6625]
[1721082445299,0.60074077,3463.4,3463.3,8.66223]
[1721082445636,0.60074077,3463.4,3463.3,11.66223]
[1721082445637,0.29861008,3463.4,3463.3,11.66223]
[1721082445998,0.29861008,3463.4,3463.3,8.77482]
[1721082446402,0.29861008,3463.4,3463.3,11.66223]
[1721082446597,0.29861008,3463.4,3463.3,12.828453]
[1721082446839,0.29861008,3463.4,3463.3,9.941043]
[1721082451524,0.29861008,3463.4,3463.3,8.77482]
[1721082455115,0.29861008,3463.4,3463.3,11.66223]
[1721082455515,0.29861008,3463.4,3463.3,14.54964]
[1721082455742,0.30208396,3464.3,3464.2,5.77332]
[1721082456341,0.60048765,3464.3,3464.2,5.77332]
[1721082457055,0.29840369,3464.3,3464.2,5.77332]
[1721082459337,2.3134,3464.2,3463.3,5.88735]
[1721082459646,2.3134,3464.2,3462.8,7.4]
[1721082459647,3.042,3464.0,3463.2,2.88746]
[1721082460054,0.55,3463.9,3463.3,2.8874]
[1721082460227,0.55,3463.9,3463.4,2.88733]
[1721082460628,0.55,3463.9,3463.2,2.88745]
[1721082460827,0.70991304,3463.8,3463.2,2.88745]
[1721082461030,0.55,3463.7,3463.3,2.88737]
[1721082461259,0.55,3463.7,3463.4,2.8873]
[1721082462050,0.55,3463.7,3463.3,2.88739]
[1721082462255,0.55,3463.7,3463.4,2.88732]
[1721082463852,0.9801913,3463.7,3462.9,5.59068]
[1721082464066,0.9801913,3463.7,3463.0,5.8876]
[1721082464280,0.9801913,3463.7,3463.1,2.88757]
[1721082464978,0.9801913,3463.7,3463.2,2.8875]
[1721082465137,0.55,3463.7,3463.2,2.8875]
[1721082465539,0.55,3463.7,3463.3,2.88739]
[1721082466546,0.29665656,3463.6,3463.4,2.88731]
[1721082466751,0.55,3463.5,3463.4,2.88731]
[1721082467234,0.29665656,3463.6,3463.5,2.88725]
[1721082467447,0.29665656,3463.6,3463.5,5.7745]
[1721082467697,0.29665656,3463.6,3463.4,2.8873]
[1721082467993,0.29665656,3463.6,3463.3,2.8874]
[1721082468187,0.29665656,3463.6,3463.0,3.0]
[1721082468549,0.29665656,3463.6,3463.3,2.88738]
[1721082468944,0.55,3463.5,3463.3,2.88738]
[1721082469349,0.55,3463.5,3463.4,2.88733]
[1721082470362,0.55,3463.5,3463.2,2.88744]
[1721082470566,0.55,3463.5,3463.3,2.88741]
[1721082470883,0.55,3463.5,3462.9,2.88774]
[1721082470884,2.4068,3463.4,3462.9,2.88774]
[1721082471120,0.55,3463.3,3462.9,2.88774]
[1721082471793,0.55,3463.3,3463.2,2.8875]
[1721082472253,0.55,3463.5,3463.2,2.8875]
[1721082473370,0.55,3463.5,3463.3,2.88741]
[1721082473952,0.29665656,3463.6,3463.0,2.88765]
[1721082474158,0.29665656,3463.6,3463.5,2.88725]
[1721082474953,0.29665656,3463.6,3463.1,2.88752]
[1721082475377,0.55,3463.5,3463.1,2.88752]
[1721082475663,0.55,3463.5,3463.4,2.88733]
[1721082476263,0.55,3463.5,3463.1,2.88751]
[1721082476678,0.55,3463.5,3463.0,2.88766]
[1721082477455,0.55,3463.5,3462.8,2.88781]
[1721082477667,0.55,3463.5,3462.9,3.0]
[1721082477886,0.67758466,3463.4,3462.9,3.0]
[1721082478064,0.55,3463.3,3462.8,5.88781]
[1721082478573,5.9291,3463.7,3462.8,5.88781]
[1721082478574,0.55,3463.5,3462.8,5.88781]
[1721082478782,0.29587564,3463.2,3462.8,5.88781]
[1721082478994,0.55,3463.1,3462.8,5.88781]
[1721082479772,0.29587564,3463.2,3463.1,2.88758]
[1721082484101,0.29587564,3463.2,3463.1,5.77516]
[1721082485970,0.29587564,3463.2,3463.1,2.88758]
[1721082487174,0.29587564,3463.2,3463.1,5.77516]
[1721082487879,0.5980073,3463.2,3463.1,5.77516]
[1721082488081,0.5980073,3463.2,3463.1,6.652676]
[1721082489610,0.5980073,3463.2,3463.1,5.77516]
[1721082489930,0.29587564,3463.2,3463.1,5.77516]
[1721082490083,0.5979971,3463.2,3463.1,2.88758]
[1721082490615,0.5979971,3463.2,3462.8,3.0]
[1721082490616,1.1479971,3463.2,3462.8,3.0]
[1721082490827,0.55,3463.1,3462.8,3.0]
[1721082490979,0.55,3463.1,3462.8,5.88783]
[1721082492815,0.55,3463.1,3462.8,3.0]
[1721082493019,0.55,3463.1,3462.8,5.88782]
[1721082493757,0.55,3463.1,3462.8,3.0]
[1721082493898,0.55,3463.1,3462.7,0.0372934]
[1721082493899,0.55,3463.1,3462.7,5.9251934]
[1721082494762,0.55,3463.1,3462.7,5.9251834]
[1721082495405,0.5979971,3463.2,3463.1,2.88758]
[1721082496516,0.5979971,3463.2,3462.7,3.0372934]
[1721082496734,0.5979971,3463.2,3462.7,0.0372934]
[1721082496933,3.40837485,3463.1,3462.7,0.0372934]
[1721082497238,3.0126,3463.1,3462.7,0.0372934]
[1721082497817,3.75317278,3463.1,3462.7,0.0372934]
[1721082498000,0.55,3463.1,3462.8,2.88779]
[1721082498199,0.55,3463.1,3462.7,0.0372934]
[1721082499140,1.85360758,3463.0,3462.7,0.0372934]
[1721082499345,0.55,3462.9,3462.7,0.0372934]
[1721082499802,0.55,3463.0,3462.7,0.0372934]
[1721082500397,1.45779072,3463.1,3462.7,0.0372934]
[1721082500633,1.24284398,3463.0,3462.7,0.0372934]
[1721082500850,0.55,3462.9,3462.7,0.0372934]
[1721082502015,2.8075,3462.9,3462.7,0.0372934]
[1721082502226,1.85363679,3462.8,3462.7,0.0372934]
[1721082502498,0.55,3462.8,3462.7,0.0372934]
[1721082502620,4.07451158,3462.8,3462.7,0.0372934]
[1721082502818,2.86412396,3462.8,3462.7,0.0372934]
[1721082503151,3.77192775,3462.8,3462.7,0.0372934]
[1721082503361,2.86412396,3462.8,3462.7,0.0372934]
[1721082503519,0.55,3462.8,3462.7,0.0372934]
[1721082503717,4.25238762,3463.1,3462.7,0.0372934]
[1721082503718,0.90780379,3463.1,3462.7,0.0372934]
[1721082503920,1.85360979,3463.0,3462.7,0.0372934]
[1721082504151,1.21038762,3463.1,3462.7,0.0372934]
[1721082504152,9.77379248,3462.8,3462.7,0.0372934]
[1721082504336,9.206336,3462.8,3462.7,0.0372934]
[1721082504652,10.5973391,3462.8,3462.7,0.0372934]
[1721082505364,10.89973777,3462.8,3462.7,0.0372934]
[1721082505544,8.40773777,3462.8,3462.7,0.0372934]
[1721082505851,9.92141796,3462.8,3462.7,0.0372934]
[1721082506447,6.18048971,3462.8,3462.7,0.0372934]
[1721082506666,3.57890467,3462.8,3462.7,0.0372934]
[1721082507169,4.78948661,3462.8,3462.7,0.0372934]
[1721082507334,11.02241486,3462.8,3462.7,0.0372934]
[1721082507532,9.50873467,3462.8,3462.7,0.0372934]
[1721082507933,10.35361352,3462.8,3462.7,0.0372934]
[1721082508263,10.91340888,3462.8,3462.7,0.0372934]
[1721082508561,11.85940292,3462.8,3462.7,0.0372934]
[1721082509352,12.76677064,3462.8,3462.7,0.0372934]
[1721082509556,11.85940292,3462.8,3462.7,0.0372934]
[1721082509723,13.06922654,3462.8,3462.7,0.0372934]
[1721082509925,6.83693892,3462.8,3462.7,0.0372934]
[1721082510164,11.85940292,3462.8,3462.7,0.0372934]
[1721082510965,13.37182105,3462.8,3462.7,0.0372934]
[1721082511730,11.85941147,3462.8,3462.7,0.0372934]
[1721082511926,3.04888147,3462.8,3462.7,0.0372934]
[1721082512239,0.59707971,3462.8,3462.7,0.0372934]
[1721082512690,5.99034823,3462.8,3462.7,0.0372934]
[1721082512988,0.59707971,3462.8,3462.7,0.0372934]
[1721082513356,1.14707971,3462.8,3462.7,0.0372934]
[1721082514158,3.00008146,3462.8,3462.7,0.0372934]
[1721082514468,1.14707971,3462.8,3462.7,0.0372934]
[1721082517299,0.59707971,3462.8,3462.7,3.32958938]
[1721082517668,0.59707971,3462.8,3462.7,6.21749938]
[1721082519104,0.29487885,3462.8,3462.7,14.59100938]
[1721082521504,0.29487885,3462.8,3462.7,11.70309938]
[1721082522191,0.29487885,3462.8,3462.7,9.21749938]
[1721082523854,0.29487885,3462.8,3462.7,5.9252034]
[1721082524060,0.29487885,3462.8,3462.7,0.0372934]
[1721082524263,0.84487885,3462.8,3462.7,2.9252034]
[1721082524482,0.29487885,3462.8,3462.7,0.0372934]
[1721082524798,0.29487885,3462.8,3462.7,2.9252034]
[1721082524999,0.29487885,3462.8,3462.7,5.9252034]
[1721082525201,0.29487885,3462.8,3462.7,2.9252034]
[1721082525389,0.29487885,3462.8,3462.7,5.9252034]
[1721082526266,0.29487885,3462.8,3462.7,6.80653174]
[1721082526785,0.29487885,3462.8,3462.7,3.91862174]
[1721082526986,0.29487885,3462.8,3462.7,5.9252034]
[1721082527505,0.29487885,3462.8,3462.7,3.0372934]
[1721082527711,0.29487885,3462.8,3462.7,0.0372934]
[1721082529477,0.84487885,3462.8,3462.7,0.0372934]
[1721082531014,7.06938157,3462.8,3462.7,0.0372934]
[1721082531308,9.79131202,3462.8,3462.7,0.0372934]
[1721082532018,8.58107943,3462.8,3462.7,0.0372934]
[1721082532677,14.51090943,3462.8,3462.7,0.0372934]
[1721082533519,16.32678637,3462.8,3462.7,0.0372934]
[1721082533813,16.32672425,3462.8,3462.7,0.0372934]
[1721082534021,13.56503671,3462.8,3462.7,0.0372934]
[1721082534194,14.51114113,3462.8,3462.7,0.0372934]
[1721082534723,17.70121816,3462.8,3462.7,0.0372934]
[1721082534907,19.51687677,3462.8,3462.7,0.0372934]
[1721082535218,17.70121816,3462.8,3462.7,0.0372934]
[1721082535420,20.70121816,3462.8,3462.7,0.0372934]
[1721082535625,22.81975768,3462.8,3462.7,0.0372934]
[1721082535985,20.70121816,3462.8,3462.7,3.4e-06]
[1721082536326,8.35562,3461.5,3461.4,7.4]
[1721082536483,11.8976056,3461.5,3461.2,19.93]
[1721082536818,3.06419911,3461.4,3461.2,19.93]
[1721082537006,0.55,3461.3,3461.2,19.93]
[1721082541792,0.55,3461.3,3460.8,2.88949]
[1721082542022,0.55,3461.3,3460.9,2.88941]
[1721082543332,3.042,3461.2,3459.3,10.29069]
[1721082543546,3.042,3461.2,3459.9,2.8902]
[1721082543547,2.88952,3460.8,3459.9,2.8902]
[1721082543842,2.88952,3460.8,3459.4,2.2818]
[1721082544030,0.55,3460.7,3459.9,2.89024]
[1721082544195,0.55,3460.7,3460.0,2.89016]
[1721082544396,0.55,3460.8,3460.0,2.8901]
[1721082544646,0.55,3460.9,3460.0,3.17916]
[1721082544797,0.55,3461.0,3460.3,2.88986]
[1721082545236,2.88962,3460.7,3459.7,2.89036]
[1721082545396,0.55,3460.6,3459.7,2.89036]
[1721082545603,0.55,3460.6,3459.8,5.8903]
[1721082545801,1.48711,3460.6,3459.8,5.8903]
[1721082546001,4.37678,3460.6,3459.8,5.8903]
[1721082546897,0.55,3460.6,3460.0,2.89015]
[1721082547098,0.55,3460.6,3460.0,2.89016]
[1721082547433,0.29435157,3460.5,3460.3,2.88991]
[1721082549102,0.29435157,3460.5,3460.1,2.89002]
[1721082549604,3.43984,3460.4,3459.4,5.17246]
[1721082549943,0.37341916,3460.3,3459.6,2.89044]
[1721082550102,0.37341916,3460.3,3459.7,3.0]
[1721082550302,0.55,3460.2,3459.7,3.0]
[1721082552500,0.55,3460.2,3459.8,2.89027]
[1721082552706,0.55,3460.3,3459.8,2.89027]
[1721082553638,0.55,3460.3,3459.7,3.0]
[1721082553952,0.55,3460.3,3459.8,2.89026]
[1721082554817,0.55,3460.3,3459.7,5.89039]
[1721082555018,1.18123663,3460.3,3459.7,5.89039]
[1721082555553,1.18123663,3460.3,3459.7,3.0]
[1721082555718,1.18123663,3460.3,3459.6,3.0]
[1721082556118,4.22323663,3460.3,3459.2,25.9405138]
[1721082556347,2.89017,3460.1,3459.2,25.9405138]
[1721082556549,0.55,3460.0,3459.2,25.9405138]
[1721082557054,0.55,3460.0,3459.2,23.0496838]
[1721082557224,0.55,3460.2,3459.2,25.96704942]
[1721082557432,2.57824476,3460.4,3459.8,2.89033]
[1721082557616,0.29433451,3459.9,3459.8,2.89033]
[1721082557819,2.57824476,3460.4,3459.8,2.89033]
[1721082558014,0.29428115,3459.9,3459.4,2.89066]
[1721082558248,0.29428115,3459.9,3459.5,5.89057]
[1721082558417,2.88994,3460.3,3459.5,2.89057]
[1721082558613,0.29429627,3459.8,3459.5,2.89057]
[1721082558916,3.41400024,3460.4,3459.6,2.8905]
[1721082559225,0.29429504,3459.7,3459.6,2.8905]
[1721082559431,0.55,3460.3,3459.6,2.8905]
[1721082559627,0.84428116,3460.3,3459.6,2.8905]
[1721082559823,0.84428116,3460.3,3459.2,25.96704942]
[1721082560016,0.29428116,3460.3,3459.9,2.89019]
[1721082560563,0.29428116,3460.3,3460.1,2.89]
[1721082561447,0.29428116,3460.3,3460.0,2.89017]
[1721082561651,0.29428116,3460.3,3459.8,2.89025]
[1721082562324,0.29428116,3460.3,3459.9,2.89023]
[1721082562524,0.29428116,3460.3,3460.0,2.89015]
[1721082562969,0.29428116,3460.3,3460.0,3.468205]
[1721082563270,0.29428116,3460.3,3460.2,2.89]
[1721082564447,0.84428116,3460.3,3459.7,3.0]
[1721082564761,2.946,3460.2,3459.4,2.89067]
[1721082565324,2.946,3460.2,3459.2,3.0105138]
[1721082565325,0.64324859,3460.1,3459.2,3.0105138]
[1721082565529,0.55,3460.0,3459.2,3.0105138]
[1721082565966,0.30242621,3459.9,3459.3,5.8907]
[1721082566184,0.55,3459.8,3459.5,2.89052]
[1721082566770,0.55,3459.8,3459.3,5.89075]
[1721082566938,0.55,3459.8,3459.6,2.8905]
[1721082567146,0.55,3459.8,3459.4,2.89064]
[1721082567493,0.55,3459.8,3459.5,2.89057]
[1721082568041,0.55,3459.8,3459.3,5.89075]
[1721082568277,0.55,3459.8,3459.3,2.89075]
[1721082568767,0.55,3459.8,3459.2,3.0105238]
[1721082569485,0.92425262,3459.8,3459.2,3.0105238]
[1721082569885,0.29426392,3459.7,3459.2,3.0105238]
[1721082570038,0.55,3459.6,3459.2,3.0105238]
[1721082571285,0.55,3459.6,3459.3,2.89074]
[1721082572589,0.29426392,3459.7,3459.5,2.89051]
[1721082572790,0.29426392,3459.7,3459.6,2.8905]
[1721082573481,0.29426392,3459.7,3459.4,2.89065]
[1721082573686,0.29426392,3459.7,3459.6,2.8905]
[1721082575153,0.29426392,3459.7,3459.6,5.781]
[1721082581388,0.29426392,3459.7,3459.2,0.1196838]
[1721082581543,0.55,3459.6,3459.3,2.89075]
[1721082581748,0.55,3459.6,3459.4,2.89067]
[1721082581749,0.37582639,3459.5,3459.4,2.89067]
[1721082581943,0.92582639,3459.5,3459.2,3.0104638]
[1721082582155,0.37582639,3459.5,3459.2,3.0104638]
[1721082582391,0.55,3459.4,3459.2,0.1196838]
[1721082590097,0.30215276,3459.5,3459.2,0.1196838]
[1721082590299,0.30215276,3459.5,3459.3,3.19174938]
[1721082590597,0.30215276,3459.5,3459.4,2.89067]
[1721082590798,0.85215276,3459.5,3459.4,2.89067]
[1721082591004,0.85215276,3459.5,3459.2,0.1196838]
[1721082591512,0.85215276,3459.5,3459.2,3.0105238]
[1721082591686,0.55,3459.4,3459.2,3.0105238]
[1721082592303,0.30215276,3459.5,3459.2,3.0105238]
[1721082592478,0.30215276,3459.5,3459.3,2.89075]
[1721082592874,0.30215276,3459.5,3459.2,0.1196838]
[1721082593118,0.30215276,3459.5,3459.2,3.0105038]
[1721082593413,0.30215276,3459.5,3459.2,0.1196838]
[1721082594680,0.30215276,3459.5,3459.2,3.0104938]
[1721082595190,0.30215276,3459.5,3459.3,2.89074]
[1721082596400,2.8231,3459.4,3459.2,0.1196838]
[1721082596611,1.2104852,3459.5,3459.2,0.1196838]
[1721082597538,0.55,3459.4,3459.2,0.1196838]
[1721082597825,3.3518694,3459.4,3459.2,0.1196838]
[1721082598110,0.94678419,3459.3,3459.2,0.1196838]
[1721082598297,2.40509825,3459.4,3459.2,0.1196838]
[1721082598792,2.70470985,3459.4,3459.2,0.1196838]
[1721082599671,1.79637741,3459.4,3459.2,0.1196838]
[1721082600119,2.70470985,3459.4,3459.2,0.1196838]
[1721082600415,2.27775695,3459.3,3459.2,0.1196838]
[1721082600917,1.91862476,3459.3,3459.2,0.1196838]
[1721082601119,2.82775958,3459.3,3459.2,0.1196838]
[1721082601323,0.94682751,3459.3,3459.2,0.1196838]
[1721082601525,1.85596233,3459.3,3459.2,0.1196838]
[1721082602223,0.94682751,3459.3,3459.2,0.1196838]
[1721082602779,2.15551223,3459.4,3459.2,0.1196838]
[1721082602975,0.94679851,3459.3,3459.2,0.1196838]
[1721082603426,1.24637741,3459.4,3459.2,0.1196838]
[1721082603815,1.24637741,3459.4,3459.3,8.4845]
[1721082603982,1.24637741,3459.4,3459.3,16.78815]
[1721082604886,1.24637741,3459.4,3459.3,14.08515]
[1721082605122,1.24637741,3459.4,3459.3,16.78815]
[1721082605484,1.24529331,3459.4,3459.3,16.78815]
[1721082605808,1.24529331,3459.4,3459.3,18.50904002]
[1721082605982,1.24529331,3459.4,3459.3,15.61829002]
[1721082606383,1.24529331,3459.4,3459.3,13.20539002]
[1721082606602,1.24529331,3459.4,3459.3,10.50239002]
[1721082607024,1.24529331,3459.4,3459.3,5.89075]
[1721082607222,1.24529331,3459.4,3459.3,8.7815]
[1721082609052,1.24529331,3459.4,3459.3,5.89075]
[1721082610108,2.363,3459.3,3459.2,0.1196838]
[1721082610337,3.30892427,3459.3,3459.2,0.1196838]
[1721082610499,2.363,3459.3,3459.2,0.1196838]
[1721082610705,1.24529331,3459.4,3459.2,0.1196838]
[1721082611029,1.24529331,3459.4,3459.2,3.0105138]
[1721082611232,1.24529331,3459.4,3459.2,0.1196838]
[1721082612303,0.2996116,3459.4,3459.2,0.1196838]
[1721082612930,0.2996116,3459.4,3459.2,3.0105138]
[1721082613133,0.2996116,3459.4,3459.3,2.89075]
[1721082613639,0.2996116,3459.4,3459.2,3.0105138]
[1721082613844,0.2996116,3459.4,3459.2,0.1196838]
[1721082614137,0.2996116,3459.4,3459.2,3.0105038]
[1721082614651,0.2996116,3459.4,3459.3,2.89075]
[1721082615439,0.2996116,3459.4,3459.2,0.1196838]
[1721082616237,0.68030624,3459.4,3459.2,0.1196838]
[1721082618110,0.55,3459.3,3459.2,0.1196838]
[1721082618307,0.68030624,3459.4,3459.2,0.1196838]
[1721082619120,3.44075,3459.3,3459.2,0.1196838]
[1721082619339,8.7192,3459.3,3459.2,0.1196838]
[1721082619542,7.17411411,3459.3,3459.2,0.1196838]
[1721082619724,7.47639756,3459.3,3459.2,0.1196838]
[1721082620252,10.36714756,3459.3,3459.2,0.1196838]
[1721082620918,13.41514756,3459.3,3459.2,0.1196838]
[1721082621123,18.51273466,3459.3,3459.2,0.1196838]
[1721082621339,23.63467174,3459.3,3459.2,0.1196838]
[1721082621647,2.3877,3458.4,3458.0,7.4]
[1721082621852,0.90915907,3458.2,3457.5,19.93]
[1721082622065,0.9463056,3458.1,3457.5,19.93]
[1721082622367,0.30017679,3458.1,3457.5,19.93]
[1721082623025,3.19194679,3458.1,3457.5,19.93]
[1721082623210,3.90474249,3458.0,3457.5,19.93]
[1721082623406,4.81390156,3458.0,3457.5,19.93]
[1721082623611,1.85556852,3457.9,3457.5,19.93]
[1721082623931,0.90915907,3457.9,3457.5,19.93]
[1721082624242,6.02380364,3458.0,3457.5,19.93]
[1721082624413,1.07292855,3457.9,3457.5,19.93]
[1721082624949,3.96484855,3457.9,3457.5,19.93]
[1721082625248,3.96484855,3457.9,3457.0,22.82266]
[1721082625445,3.96484855,3457.9,3457.0,2.89266]
[1721082625654,3.96484855,3457.9,3457.1,3.0]
[1721082625811,0.61860969,3457.8,3457.1,3.0]
[1721082626155,2.4033,3457.7,3456.8,7.4]
[1721082626353,5.29561,3457.5,3456.5,19.93]
[1721082626556,6.03284887,3457.5,3456.6,2.893]
[1721082627567,3.14053887,3457.5,3456.7,2.89292]
[1721082627851,5.29556,3457.5,3456.6,2.893]
[1721082628164,5.29556,3457.5,3456.4,2.89313]
[1721082628464,0.529556,3457.4,3456.4,2.89313]
[1721082628610,2.89259,3457.2,3456.2,7.4]
[1721082628816,3.577556,3457.4,3456.2,10.29334]
[1721082628817,0.55,3457.1,3456.2,10.29334]
[1721082629015,0.55,3457.3,3456.2,10.29334]
[1721082629223,0.6530856,3457.2,3456.2,10.29334]
[1721082629411,3.44261,3457.1,3456.3,3.0]
[1721082629625,2.89244,3457.3,3456.3,5.89326]
[1721082629857,2.89251,3457.2,3456.3,5.89326]
[1721082630041,2.89251,3457.2,3456.3,3.0]
[1721082630210,0.578485,3457.1,3456.3,3.0]